[Event "Vezerkepzo IM May 2021"]
[White "Pein, Jonathan"]
[Black "Bokros, Albert"]
[WhiteFideId "417092"]
[BlackFideId "710458"]
[WhiteElo "2185"]
[BlackElo "2458"]
[Result "0-1"]
[Round "06"]
[TimeControl "5400+30"]
[Date "Tue May 18 2021"]
[WhiteClock "0:33:29"]
[BlackClock "0:33:14"]

1. e4 {[%clk 1:30:27]}  c5 {[%clk 0:00:00]} 2. g3 {[%clk 1:30:48]}  Nc6 {[%clk 1:30:01]} 3. Bg2 {[%clk 1:31:16]}  g6 {[%clk 1:29:55]} 4. Ne2 {[%clk 1:31:43]}  Bg7 {[%clk 1:30:08]} 5. O-O {[%clk 1:31:35]}  e5 {[%clk 1:29:47]} 6. a3 {[%clk 1:31:26]}  Nge7 {[%clk 1:29:03]} 7. b4 {[%clk 1:31:55]}  d6 {[%clk 1:25:49]} 8. c3 {[%clk 1:30:54]}  O-O {[%clk 1:23:06]} 9. d3 {[%clk 1:30:52]}  Be6 {[%clk 1:19:14]} 10. Be3 {[%clk 1:28:15]}  b6 {[%clk 1:15:57]} 11. b5 {[%clk 1:28:28]}  Na5 {[%clk 1:13:05]} 12. c4 {[%clk 1:28:46]}  Qd7 {[%clk 1:12:09]} 13. Nbc3 {[%clk 1:25:17]}  Rae8 {[%clk 1:12:09]} 14. Rb1 {[%clk 1:23:33]}  f5 {[%clk 1:03:27]} 15. Bg5 {[%clk 1:23:33]}  f4 {[%clk 0:57:06]} 16. f3 {[%clk 1:08:25]}  h6 {[%clk 0:53:09]} 17. Bxe7 {[%clk 1:07:52]}  Rxe7 {[%clk 0:53:09]} 18. Nd5 {[%clk 0:52:48]}  Ref7 {[%clk 0:52:24]} 19. g4 {[%clk 0:50:15]}  h5 {[%clk 0:50:13]} 20. gxh5 {[%clk 0:32:52]}  gxh5 {[%clk 0:50:13]} 21. Qe1 {[%clk 0:31:13]}  Bh6 {[%clk 0:38:38]} 22. h4 {[%clk 0:25:06]}  Kh8 {[%clk 0:34:40]} 23. Kh2 {[%clk 0:24:44]}  Rg8 {[%clk 0:34:40]} 24. Rg1 {[%clk 0:23:51]}  Rg6 {[%clk 0:18:44]} 25. Qf1 {[%clk 0:11:59]}  Qd8 {[%clk 0:18:44]} 26. Bh3 {[%clk 0:09:20]}  Rxg1 {[%clk 0:14:31]} 27. Nxg1 {[%clk 0:06:23]}  Qxh4 {[%clk 0:11:30]} 28. Qe1 {[%clk 0:06:51]}  Qxe1 {[%clk 0:11:25]} 29. Rxe1 {[%clk 0:07:20]}  Bxd5 {[%clk 0:09:50]} 30. exd5 {[%clk 0:06:14]}  Nb3 {[%clk 0:09:54]} 31. Ne2 {[%clk 0:03:54]}  e4 {[%clk 0:09:54]} 32. dxe4 {[%clk 0:03:09]}  Nd2 {[%clk 0:09:10]} 33. Ng1 {[%clk 0:03:09]}  Nxc4 {[%clk 0:08:43]} 34. Kg2 {[%clk 0:00:34]}  Bg7 {[%clk 0:07:57]} 35. Be6 {[%clk 0:00:39]}  Rf6 {[%clk 0:08:02]} 36. Kf2 {[%clk 0:00:35]}  Rg6 {[%clk 0:05:03]} 37. Nh3 {[%clk 0:00:35]}  Bd4+ {[%clk 0:04:49]} 38. Kf1 {[%clk 0:00:38]}  Rg3 {[%clk 0:03:02]} 39. Ke2 {[%clk 0:00:42]}  Rg2+ {[%clk 0:03:08]} 40. Kd1 {[%clk 0:30:33]}  Nb2+ {[%clk 0:31:55]} 41. Kc1 {[%clk 0:30:51]}  Nd3+ {[%clk 0:32:15]} 42. Kd1 {[%clk 0:30:51]}  Nxe1 {[%clk 0:32:03]} 43. Kxe1 {[%clk 0:31:48]}  Be5 {[%clk 0:32:03]} 44. Nf2 {[%clk 0:32:03]}  c4 {[%clk 0:32:12]} 45. Kf1 {[%clk 0:32:08]}  Rg3 {[%clk 0:32:22]} 46. Ke2 {[%clk 0:32:34]}  c3 {[%clk 0:32:02]} 47. Nd3 {[%clk 0:32:46]}  c2 {[%clk 0:32:02]} 48. Kd2 {[%clk 0:32:46]}  Rg2+ {[%clk 0:32:37]} 49. Kc1 {[%clk 0:33:27]}  Bd4 {[%clk 0:32:55]} 50. e5 {[%clk 0:33:29]}  Be3+ {[%clk 0:33:14]} 0-1